bitfinex/quotes_BTCUSD_20241206
["timestamp","ask_amount","ask_price","bid_price","bid_amount"]
[1733516034633,0.03472897,101670.0,101660.0,0.568]
[1733516035072,0.0018688,101670.0,101660.0,0.568]
[1733516036021,0.002,101670.0,101660.0,0.568]
[1733516036237,0.0028688,101670.0,101660.0,0.568]
[1733516036455,0.002,101670.0,101660.0,0.568]
[1733516036677,0.0028688,101670.0,101660.0,0.568]
[1733516037136,0.002,101670.0,101660.0,0.69102951]
[1733516037872,0.0028688,101670.0,101660.0,0.69102951]
[1733516038104,0.002,101670.0,101660.0,0.69102951]
[1733516038338,0.0028688,101670.0,101660.0,0.69102951]
[1733516038809,0.0028688,101670.0,101660.0,0.72199958]
[1733516039043,0.0028688,101670.0,101660.0,1.11076994]
[1733516039265,0.0028688,101670.0,101660.0,1.11065713]
[1733516039529,0.003738,101670.0,101660.0,1.11065713]
[1733516040436,0.0028692,101670.0,101660.0,1.11065713]
[1733516040877,0.003738,101670.0,101660.0,1.11065713]
[1733516043114,0.003738,101670.0,101660.0,0.69265713]
[1733516043361,0.003738,101670.0,101660.0,4.89483213]
[1733516044015,0.003738,101670.0,101660.0,4.80229462]
[1733516044263,0.11739817,101670.0,101660.0,4.38314507]
[1733516044486,0.11739817,101670.0,101660.0,0.41946065]
[1733516044487,0.23149871,101670.0,101660.0,0.41946065]
[1733516044707,0.23149871,101670.0,101660.0,0.03097007]
[1733516045170,0.03286017,101650.0,101640.0,0.39022898]
[1733516045385,0.16146017,101650.0,101640.0,0.39022898]
[1733516045595,0.16146017,101650.0,101640.0,0.03996706]
[1733516046474,0.16246017,101650.0,101640.0,0.03996706]
[1733516046932,0.16246017,101650.0,101640.0,0.18996706]
[1733516047210,0.16346017,101650.0,101640.0,0.03996706]
[1733516052005,0.16432897,101650.0,101640.0,0.03996706]
[1733516052240,0.16432897,101650.0,101640.0,0.57849626]
[1733516052480,0.16346017,101650.0,101640.0,0.57849626]
[1733516054005,0.16346017,101650.0,101640.0,0.18996706]
[1733516055136,0.16293513,101650.0,101640.0,0.18996706]
[1733516058886,0.1306,101650.0,101640.0,0.18996706]
[1733516059332,0.13035127,101650.0,101640.0,0.18996706]
[1733516060910,0.1626864,101650.0,101640.0,0.18996706]
[1733516062037,0.1635552,101650.0,101640.0,0.18996706]
[1733516062243,0.0037379,101650.0,101640.0,0.18996706]
[1733516062705,0.0028691,101650.0,101640.0,4.78043471]
[1733516062932,0.0037379,101650.0,101640.0,3.45625971]
[1733516063154,0.0018691,101650.0,101640.0,3.45625971]
[1733516063376,0.0017379,101650.0,101640.0,3.45625971]
[1733516063598,0.00121837,101650.0,101640.0,3.06796706]
[1733516063830,0.00121837,101650.0,101640.0,3.07196706]
[1733516064067,0.00121837,101650.0,101640.0,3.06896706]
[1733516064311,0.00121837,101650.0,101640.0,3.07196706]
[1733516065272,0.00121837,101650.0,101640.0,3.45925971]
[1733516065490,0.00121837,101650.0,101640.0,3.07096706]
[1733516065934,0.00121837,101650.0,101640.0,3.07196706]
[1733516066243,0.00121837,101650.0,101640.0,3.46025971]
[1733516066475,0.00121837,101650.0,101640.0,3.07196706]
[1733516066689,0.00121837,101650.0,101640.0,3.46025971]
[1733516067110,0.00121837,101650.0,101640.0,1.61302439]
[1733516070994,0.00034957,101650.0,101640.0,1.61302439]
[1733516071911,0.00034957,101650.0,101640.0,1.22496706]
[1733516073234,0.00034957,101650.0,101640.0,0.19396706]
[1733516073453,0.00034957,101650.0,101640.0,4.39614206]
[1733516073901,0.1269688,101660.0,101640.0,4.39614206]
[1733516074167,0.01931345,101670.0,101650.0,4.83987039]
[1733516074404,0.02118105,101670.0,101660.0,1.795]
[1733516074623,0.02031225,101670.0,101660.0,2.18266588]
[1733516074849,0.08327243,101680.0,101670.0,0.15]
[1733516074850,0.08240363,101680.0,101670.0,0.15]
[1733516075072,0.08327243,101680.0,101670.0,0.15]
[1733516075278,0.08240363,101680.0,101670.0,0.15]
[1733516075483,0.08327243,101680.0,101670.0,0.15]
[1733516076016,0.08240363,101680.0,101670.0,0.15]
[1733516076439,0.09140363,101680.0,101670.0,0.151]
[1733516077097,0.17090363,101680.0,101670.0,0.151]
[1733516077866,0.17590363,101680.0,101670.0,0.151]
[1733516078054,0.1435685,101680.0,101670.0,0.151]
[1733516079819,0.1345685,101680.0,101670.0,0.18895953]
[1733516079969,0.1395685,101680.0,101670.0,0.18895953]
[1733516080804,0.1345685,101680.0,101670.0,0.18895953]
[1733516081293,0.17077243,101680.0,101670.0,0.18895953]
[1733516081525,0.1375685,101680.0,101670.0,0.03895953]
[1733516081752,0.03320393,101670.0,101660.0,0.15]
[1733516081994,0.0008688,101670.0,101660.0,4.73984088]
[1733516082451,0.03320393,101670.0,101660.0,4.73984088]
[1733516082673,0.0008688,101670.0,101660.0,4.73984088]
[1733516082889,0.03320393,101670.0,101660.0,4.73984088]
[1733516083122,0.03420393,101670.0,101660.0,4.73984088]
[1733516083538,0.0018688,101670.0,101660.0,4.73984088]
[1733516083767,0.001,101670.0,101660.0,0.27302951]
[1733516083973,0.002,101670.0,101660.0,4.86287039]
[1733516084183,0.002,101670.0,101660.0,4.55250451]
[1733516084601,0.002,101670.0,101660.0,3.79432951]
[1733516084826,0.002,101670.0,101660.0,3.74452467]
[1733516085245,0.002,101670.0,101660.0,3.10252467]
[1733516085879,0.0008685,101680.0,101670.0,0.023]
[1733516086101,0.14210288,101690.0,101680.0,0.15]
[1733516087749,0.20979726,101690.0,101680.0,0.15]
[1733516088654,0.21179726,101690.0,101680.0,0.15]
[1733516089079,0.21079726,101690.0,101680.0,0.15]
[1733516089290,0.21179726,101690.0,101680.0,0.15]
[1733516089948,0.14410288,101690.0,101680.0,0.15]
[1733516091069,0.14410288,101690.0,101680.0,0.18941571]
[1733516092159,0.14410288,101690.0,101680.0,0.03941571]
[1733516092380,0.14410288,101690.0,101670.0,0.53696733]
[1733516093281,0.14210288,101690.0,101670.0,0.53696733]
[1733516093743,0.03233513,101680.0,101670.0,0.53796733]
[1733516093995,0.14210288,101690.0,101670.0,0.69296733]
[1733516094200,0.14210288,101690.0,101670.0,0.53796733]
[1733516094623,0.14210288,101690.0,101670.0,0.53996733]
[1733516094838,0.14210288,101690.0,101670.0,0.54096733]
[1733516095955,0.14210288,101690.0,101670.0,0.58015663]
[1733516096865,0.14210288,101690.0,101670.0,0.57899153]
[1733516097084,0.14210288,101690.0,101670.0,0.57999153]
[1733516097938,0.14210288,101690.0,101670.0,0.58172913]
[1733516098145,0.03233513,101680.0,101670.0,0.58172913]
[1733516098355,0.03259407,101680.0,101670.0,0.88872913]
[1733516098985,0.03259407,101680.0,101670.0,0.88572913]
[1733516099358,0.03259407,101680.0,101670.0,0.88872913]
[1733516099565,0.03259407,101680.0,101670.0,0.88772913]
[1733516099765,0.03259407,101680.0,101670.0,0.88714486]
[1733516099970,0.03259407,101680.0,101670.0,0.88814486]
[1733516100143,0.03259407,101680.0,101670.0,0.84514486]
[1733516100350,0.03259407,101680.0,101670.0,0.74814486]
[1733516102135,0.03259407,101680.0,101670.0,0.58114486]
[1733516102346,0.03259407,101680.0,101670.0,0.19434263]
[1733516102873,0.12625894,101680.0,101670.0,0.0449269]
[1733516103088,0.22751776,101680.0,101670.0,0.0449269]
[1733516103335,0.27628845,101680.0,101670.0,0.0449269]
[1733516103770,0.32628845,101680.0,101670.0,0.0449269]
[1733516103983,0.32628845,101680.0,101670.0,0.0047376]
[1733516104187,0.32928845,101680.0,101670.0,0.0047376]
[1733516104432,0.27928845,101680.0,101670.0,0.0017376]
[1733516104699,0.23428845,101680.0,101670.0,0.0017376]
[1733516105130,0.22928845,101680.0,101670.0,0.0017376]
[1733516105368,0.23828845,101680.0,101670.0,0.0027376]
[1733516105599,0.13525894,101680.0,101670.0,0.0027376]
[1733516105835,0.16759407,101680.0,101670.0,0.0027376]
[1733516106067,0.17259407,101680.0,101670.0,0.0027376]
[1733516112186,0.17259407,101680.0,101670.0,0.39010711]
[1733516112367,0.17259407,101680.0,101670.0,0.54010711]
[1733516119532,0.17259407,101680.0,101670.0,0.1527376]
[1733516119746,0.17259407,101680.0,101670.0,0.54054244]
[1733516120229,0.01425894,101680.0,101670.0,0.27576711]
[1733516120455,0.01425894,101680.0,101670.0,4.56034211]
[1733516120456,0.00725553,101680.0,101670.0,4.56034211]
[1733516120684,0.00725553,101680.0,101670.0,4.85582956]
[1733516120915,0.07950393,101690.0,101680.0,0.15]
[1733516121116,0.07950393,101690.0,101680.0,0.53772458]
[1733516122298,0.08050393,101690.0,101680.0,0.53772458]
[1733516122754,0.08150393,101690.0,101680.0,0.53772458]
[1733516124491,0.08150393,101690.0,101680.0,0.15]
[1733516125620,0.08150393,101690.0,101680.0,0.18372661]
[1733516130285,0.08150393,101690.0,101670.0,0.49274513]
[1733516130500,0.08150393,101690.0,101670.0,0.4927309]
[1733516131180,0.08050393,101690.0,101670.0,0.4927309]
[1733516131654,0.08050393,101690.0,101670.0,0.4937309]
[1733516132072,0.07950393,101690.0,101670.0,0.4937309]
[1733516133208,0.07950393,101690.0,101670.0,0.5266164]
[1733516133691,0.07950393,101690.0,101670.0,0.5323542]
[1733516134429,0.07950393,101690.0,101680.0,0.15]
[1733516135282,0.07950393,101690.0,101680.0,0.15301598]
[1733516136065,0.08050393,101690.0,101680.0,0.15301598]
[1733516140075,0.08050393,101690.0,101680.0,0.15401598]
[1733516140926,0.03420393,101690.0,101680.0,0.15401598]
[1733516144309,0.03420393,101690.0,101680.0,0.151]
[1733516146587,0.22899831,101690.0,101680.0,0.53809817]
[1733516146828,0.22899831,101690.0,101680.0,0.38809817]
[1733516147047,0.22899831,101690.0,101680.0,0.001]
[1733516148927,0.27899831,101690.0,101680.0,0.001]
[1733516149161,0.32899831,101690.0,101680.0,0.001]
[1733516149594,0.32799831,101690.0,101680.0,0.001]
[1733516150248,0.33099831,101690.0,101680.0,0.001]
[1733516151158,0.33499831,101690.0,101680.0,0.001]
[1733516152440,0.28499831,101690.0,101680.0,0.001]
[1733516153097,0.23499831,101690.0,101680.0,0.001]
[1733516153300,0.28499831,101690.0,101680.0,0.001]
[1733516153994,0.23499831,101690.0,101680.0,0.001]
[1733516156178,0.03233513,101670.0,101650.0,0.58815423]
[1733516156396,0.03233513,101670.0,101660.0,0.15]
[1733516157508,0.22372951,101670.0,101660.0,0.15]
[1733516157953,0.22372951,101670.0,101660.0,0.004]
[1733516158622,0.22372951,101670.0,101650.0,0.004]
[1733516158848,0.03233513,101650.0,101640.0,0.0017384]
[1733516160346,0.11013513,101660.0,101640.0,0.0017384]
[1733516160535,0.03233513,101660.0,101650.0,0.15]
[1733516161629,0.03233513,101660.0,101640.0,0.2364384]
[1733516162304,0.03233513,101660.0,101640.0,0.26815783]
[1733516163594,0.03233513,101660.0,101640.0,0.27215783]
[1733516164019,0.03233513,101660.0,101630.0,0.173]
[1733516164306,0.03233513,101660.0,101640.0,0.002]
[1733516164956,0.03233513,101660.0,101630.0,0.27302951]
[1733516165379,0.03233513,101660.0,101630.0,0.28502951]
[1733516165816,0.03233513,101660.0,101630.0,0.31418828]
[1733516166655,0.10933513,101660.0,101630.0,0.30618828]
[1733516167115,0.10933513,101660.0,101640.0,0.0067386]
[1733516167330,0.10933513,101660.0,101650.0,0.15]
[1733516167550,0.11033513,101660.0,101650.0,0.15]
[1733516168198,0.22462951,101660.0,101650.0,0.15]
[1733516168409,0.11183513,101650.0,101640.0,0.0017386]
[1733516168628,0.22612951,101650.0,101640.0,0.0017386]
[1733516170221,0.27612951,101650.0,101640.0,0.0047386]
[1733516170692,0.27612951,101650.0,101640.0,0.0067386]
[1733516171174,0.27612951,101650.0,101640.0,0.0037386]
[1733516171377,0.27612951,101650.0,101640.0,0.0017386]
[1733516171579,0.28312951,101650.0,101640.0,0.0017386]
[1733516174223,0.23312951,101650.0,101640.0,0.0017386]
[1733516175943,0.33312951,101650.0,101640.0,0.0017386]
[1733516177094,0.28312951,101650.0,101640.0,0.0017386]
[1733516179025,0.33312951,101650.0,101640.0,0.0017386]
[1733516179656,0.23312951,101650.0,101640.0,0.0017386]
[1733516180036,0.23312951,101650.0,101590.0,0.1269356]
[1733516180037,0.03233513,101600.0,101590.0,0.0017356]
[1733516180205,0.1257,101610.0,101590.0,0.0017356]
[1733516180399,0.22572951,101610.0,101590.0,0.0017356]
[1733516180803,0.03233513,101600.0,101590.0,0.0017356]
[1733516181683,0.03233513,101600.0,101590.0,0.0047356]
[1733516181849,0.03233513,101600.0,101590.0,0.0067356]
[1733516182502,0.03233513,101610.0,101590.0,0.0067356]
[1733516182933,0.03233513,101610.0,101590.0,0.0037356]
[1733516183139,0.03233513,101610.0,101590.0,0.2009356]
[1733516183410,0.03233513,101610.0,101590.0,0.2029356]
[1733516183635,0.03233513,101610.0,101590.0,0.2019356]
[1733516183863,0.03233513,101610.0,101590.0,0.24212938]
[1733516184084,0.03233513,101610.0,101590.0,0.24312938]
[1733516184544,0.03233513,101610.0,101590.0,0.24612938]
[1733516190408,0.10893093,101620.0,101600.0,0.407]
[1733516190618,0.10893093,101620.0,101610.0,0.15]
[1733516190841,0.10793513,101620.0,101610.0,0.15]
[1733516191467,0.03233513,101620.0,101610.0,0.15]
[1733516191674,0.03233513,101620.0,101600.0,0.173]
[1733516191885,0.03233513,101620.0,101610.0,4.202175]
[1733516192103,0.03233513,101620.0,101610.0,1.284]
[1733516192300,0.02434001,101630.0,101620.0,0.15]
[1733516193138,0.1242,101630.0,101620.0,0.15]
[1733516193340,0.02434001,101620.0,101610.0,0.15]
[1733516193548,0.02634001,101620.0,101610.0,0.15]
[1733516194185,0.02434001,101620.0,101610.0,0.15]
[1733516194833,0.02434001,101620.0,101610.0,0.154]
[1733516196440,0.17682951,101620.0,101610.0,0.006]
[1733516196629,0.22705946,101620.0,101610.0,0.006]
[1733516196836,0.27582951,101620.0,101610.0,0.006]
[1733516197325,0.27582951,101620.0,101610.0,0.004]
[1733516197551,0.0768,101610.0,101590.0,0.04192938]
[1733516197753,0.17682951,101610.0,101590.0,0.04192938]
[1733516197997,0.17682951,101610.0,101590.0,0.42841041]
[1733516198223,0.17682951,101610.0,101590.0,0.04192938]
[1733516198888,0.049,101600.0,101590.0,0.04192938]
[1733516200162,0.049,101600.0,101590.0,0.04492938]
[1733516200613,0.049,101600.0,101590.0,0.04192938]
[1733516200834,0.049,101600.0,101590.0,0.04392938]
[1733516201049,0.22705979,101600.0,101590.0,0.04392938]
[1733516201222,0.22582951,101600.0,101590.0,0.04692938]
[1733516207935,0.32582951,101600.0,101590.0,0.0067356]
[1733516208356,0.22582951,101600.0,101590.0,0.0067356]
[1733516209237,0.22582951,101600.0,101590.0,0.0037356]
[1733516209403,0.23382951,101600.0,101590.0,0.0027356]
[1733516209788,0.23882951,101600.0,101590.0,0.0027356]
[1733516217903,0.26182951,101600.0,101590.0,0.0027356]
[1733516219392,0.28882951,101600.0,101590.0,0.0027356]
[1733516219740,0.23882951,101600.0,101590.0,0.0027356]
[1733516220325,0.03734001,101600.0,101590.0,0.0027356]
[1733516220953,0.03234001,101600.0,101590.0,0.0027356]
[1733516222316,0.02434001,101600.0,101590.0,0.0017356]
[1733516222527,0.02434001,101600.0,101590.0,0.2342356]
[1733516222746,0.02434001,101600.0,101590.0,0.2332356]
[1733516222953,0.02434001,101610.0,101590.0,0.2332356]
[1733516223151,0.02534001,101600.0,101590.0,0.2332356]
[1733516223362,0.02434001,101600.0,101590.0,0.2312356]
[1733516223786,0.02434001,101600.0,101590.0,0.2362356]
[1733516224007,0.02434001,101600.0,101590.0,0.2332356]
[1733516225738,0.02434001,101600.0,101590.0,0.2362356]
[1733516226366,0.02434001,101600.0,101590.0,0.27326394]
[1733516226590,0.02434001,101600.0,101590.0,0.27026394]
[1733516226769,0.02434001,101600.0,101590.0,0.27526394]
[1733516226988,0.02434001,101600.0,101590.0,0.27226394]
[1733516227207,0.02434001,101600.0,101590.0,0.27026394]
[1733516227406,0.02534001,101600.0,101590.0,0.27026394]
[1733516228149,0.10225976,101600.0,101590.0,0.04076394]
[1733516228353,0.15025976,101600.0,101590.0,0.04076394]
[1733516229410,0.22525976,101600.0,101590.0,0.04076394]
[1733516229548,0.22402951,101600.0,101590.0,0.04076394]
[1733516240166,0.10102951,101600.0,101590.0,0.04076394]
[1733516240613,0.10102951,101600.0,101590.0,0.19076394]
[1733516241315,0.10225981,101600.0,101590.0,0.19076394]
[1733516241936,0.22915981,101600.0,101590.0,0.04076394]
[1733516242139,0.22692951,101600.0,101590.0,0.04276394]
[1733516242635,0.22692951,101600.0,101590.0,0.04376394]
[1733516242861,0.22692951,101600.0,101590.0,0.04076394]
[1733516243070,0.22792951,101600.0,101590.0,0.04076394]
[1733516245109,0.02534001,101600.0,101590.0,0.06376394]
[1733516245315,0.001,101600.0,101590.0,4.54693894]
[1733516245527,0.02434001,101610.0,101600.0,0.15]
[1733516245528,0.02047474,101610.0,101600.0,0.15]
[1733516245731,0.02047474,101610.0,101600.0,1.099]
[1733516245931,0.02145714,101620.0,101600.0,1.099]
[1733516246148,0.02047474,101610.0,101600.0,0.15]
[1733516246369,0.02047474,101610.0,101600.0,0.607]
[1733516246576,0.02047474,101610.0,101600.0,0.562]
[1733516246577,0.02147474,101610.0,101600.0,0.562]
[1733516246990,0.02047474,101610.0,101600.0,0.562]
[1733516247198,0.02047474,101610.0,101600.0,0.565]
[1733516248735,0.12148665,101620.0,101600.0,0.567]
[1733516248939,0.12148665,101620.0,101600.0,0.155]
[1733516249143,0.02145714,101620.0,101600.0,0.155]
[1733516249259,0.02145714,101620.0,101610.0,0.0759]
[1733516249696,0.02047474,101620.0,101610.0,0.0759]
[1733516250195,0.02134434,101630.0,101610.0,0.0759]
[1733516250395,0.0008696,101630.0,101620.0,0.15]
[1733516250607,0.02134434,101630.0,101620.0,0.15]
[1733516251156,0.0008696,101630.0,101620.0,0.15]
[1733516251793,0.0028696,101630.0,101620.0,4.428575]
[1733516251967,0.002,101630.0,101620.0,4.428575]
[1733516252372,0.02047474,101640.0,101620.0,4.428575]
[1733516252585,0.01847474,101640.0,101630.0,1.16]
[1733516253562,0.01847474,101640.0,101630.0,0.582]
[1733516253763,0.01847474,101640.0,101630.0,0.568]
[1733516253977,0.01947474,101640.0,101630.0,0.575]
[1733516254404,0.02047474,101640.0,101630.0,0.575]
[1733516254616,0.02047474,101640.0,101630.0,0.007]
[1733516255033,0.01947474,101640.0,101630.0,4.209175]
[1733516255152,0.01847474,101640.0,101630.0,3.769]
[1733516255360,0.01847474,101640.0,101630.0,3.774]
[1733516257269,0.0008696,101650.0,101640.0,0.15]
[1733516257491,0.0008696,101650.0,101640.0,4.434275]
[1733516257690,0.0008696,101650.0,101640.0,3.0091]
[1733516258033,0.0008696,101650.0,101640.0,1.9291]
[1733516258828,0.01934434,101650.0,101640.0,1.829]
[1733516259049,0.09954434,101650.0,101620.0,0.50455915]
[1733516259249,0.09954434,101650.0,101630.0,0.369]
[1733516259453,0.09954434,101650.0,101630.0,0.15]
[1733516259705,0.09954434,101650.0,101640.0,0.007]
[1733516260103,0.10054434,101650.0,101630.0,0.15]
[1733516260613,0.10054434,101650.0,101640.0,0.004]
[1733516261074,0.10054434,101650.0,101630.0,0.15]
[1733516261288,0.10054434,101650.0,101630.0,0.154]
[1733516261467,0.14904434,101650.0,101630.0,0.161]
[1733516261821,0.14704434,101650.0,101630.0,0.154]
[1733516262027,0.14704434,101650.0,101640.0,0.003]
[1733516262433,0.14704434,101650.0,101630.0,0.15]
[1733516262641,0.14804434,101650.0,101630.0,0.157]
[1733516263219,0.01847474,101640.0,101630.0,0.15]
[1733516264276,0.01847474,101640.0,101630.0,4.352175]
[1733516264683,0.01847474,101640.0,101630.0,4.354175]
[1733516265024,0.01847474,101640.0,101630.0,4.357175]
[1733516265448,0.01847474,101640.0,101630.0,4.354175]
[1733516265669,0.01847474,101640.0,101630.0,4.236015]
[1733516266095,0.01847474,101640.0,101630.0,0.772]
[1733516266302,0.01847474,101640.0,101630.0,0.742]
[1733516267306,0.01847474,101640.0,101630.0,0.655]
[1733516270920,0.01847474,101640.0,101630.0,0.6567392]
[1733516271360,0.01934434,101640.0,101630.0,0.6567392]
[1733516272195,0.02033584,101660.0,101640.0,0.15]
[1733516272399,0.0018611,101660.0,101640.0,0.15]
[1733516272615,0.02033584,101660.0,101640.0,0.15]
[1733516272791,0.01934404,101660.0,101640.0,0.15]
[1733516273834,0.0008693,101660.0,101650.0,4.231015]
[1733516274888,0.0018693,101660.0,101650.0,0.15]
[1733516275104,0.0018693,101660.0,101650.0,2.096]
[1733516275313,0.0018693,101660.0,101650.0,1.348]
[1733516275509,0.0008693,101660.0,101650.0,1.348]
[1733516275953,0.0008693,101660.0,101650.0,1.351]
[1733516277427,0.0008693,101660.0,101650.0,1.353]
[1733516282816,0.0008693,101660.0,101650.0,1.9194621]
[1733516283033,0.09967474,101680.0,101650.0,1.9678621]
[1733516283247,0.09967474,101680.0,101660.0,4.231015]
[1733516283465,0.09967474,101680.0,101660.0,0.15]
[1733516284769,0.10067474,101680.0,101660.0,0.53593259]
[1733516285179,0.10067474,101680.0,101660.0,0.15]
[1733516285810,0.0812,101680.0,101660.0,0.15]
[1733516285943,0.03556384,101710.0,101680.0,0.15]
[1733516286151,0.03556384,101710.0,101700.0,0.15]
[1733516287193,0.03556384,101710.0,101700.0,0.654]
[1733516287611,0.03556384,101710.0,101700.0,0.656]
[1733516287974,0.03556384,101710.0,101700.0,0.68757826]
[1733516288173,0.03556384,101710.0,101700.0,0.636]
[1733516288387,0.03556384,101710.0,101700.0,0.609]
[1733516288968,0.03556384,101710.0,101700.0,0.155]
[1733516289389,0.03556384,101710.0,101700.0,0.005]
[1733516291523,0.0345778,101710.0,101700.0,0.005]
[1733516291966,0.0345778,101710.0,101700.0,0.04553308]
[1733516292151,0.0345778,101710.0,101700.0,0.005]
[1733516296729,0.0345778,101710.0,101700.0,0.04539958]
[1733516296931,0.0345778,101710.0,101700.0,0.005]
[1733516298066,0.0345778,101710.0,101690.0,0.53470823]
[1733516298701,0.0345778,101710.0,101690.0,0.14665358]
[1733516298938,0.0345778,101710.0,101690.0,0.53289739]
[1733516299611,0.0345778,101710.0,101690.0,0.53689739]
[1733516299825,0.0345778,101710.0,101700.0,0.00291511]
[1733516300032,0.01610306,101710.0,101700.0,0.10294462]
[1733516300255,0.01710306,101710.0,101700.0,0.40444462]
[1733516300459,0.01710306,101710.0,101700.0,0.79068843]
[1733516300873,0.01710306,101710.0,101700.0,0.74468843]
[1733516301080,0.01610306,101710.0,101700.0,4.82570343]
[1733516301287,0.01610306,101710.0,101700.0,4.82870343]
[1733516302179,0.01610306,101710.0,101700.0,4.82970343]
[1733516302399,0.01610306,101710.0,101700.0,4.86358489]
[1733516303284,0.01610306,101710.0,101700.0,4.47734108]
[1733516304176,0.01610306,101710.0,101700.0,4.86358489]
[1733516304381,0.01610306,101710.0,101700.0,4.47734108]
[1733516305237,0.01610306,101710.0,101700.0,3.74544462]
[1733516305882,0.01610306,101710.0,101700.0,2.86894462]
[1733516306133,0.1574778,101710.0,101700.0,0.154]
[1733516306335,0.13900306,101710.0,101700.0,0.154]
[1733516306762,0.0795778,101710.0,101700.0,0.154]
[1733516308954,0.0795778,101710.0,101690.0,0.59144624]
[1733516309221,0.0795778,101710.0,101690.0,0.3063512]
[1733516310536,0.0805778,101710.0,101690.0,0.3123512]
[1733516311256,0.0805778,101710.0,101700.0,0.15]
[1733516312527,0.0805778,101710.0,101700.0,0.151]
[1733516313077,0.0795778,101710.0,101700.0,0.151]
[1733516313721,0.0795778,101710.0,101700.0,0.153]
[1733516313917,0.1617778,101710.0,101700.0,0.153]
[1733516314915,0.26180731,101710.0,101700.0,0.003]
[1733516315111,0.29333257,101710.0,101700.0,0.003]
[1733516315336,0.44883932,101710.0,101700.0,0.003]
[1733516315566,0.2294,101700.0,101690.0,0.0394587]
[1733516315786,0.01847474,101670.0,101650.0,0.38744145]
[1733516315991,0.14277474,101680.0,101650.0,0.0017386]
[1733516316198,0.01847474,101670.0,101650.0,0.10176811]
[1733516316615,0.01847474,101670.0,101660.0,0.15]
[1733516317540,0.0762,101660.0,101650.0,0.19068727]
[1733516317765,0.0762,101660.0,101650.0,0.41468727]
[1733516318099,0.0762,101660.0,101650.0,0.19468727]
[1733516318542,0.0762,101660.0,101650.0,0.42468727]
[1733516318754,0.0762,101660.0,101650.0,0.42868727]
[1733516318957,0.0762,101660.0,101650.0,0.35768727]
[1733516319371,0.0762,101660.0,101650.0,0.19468727]
[1733516319590,0.0762,101660.0,101650.0,0.19758564]
[1733516319817,0.0762,101660.0,101650.0,0.46958564]
[1733516320286,0.0772,101660.0,101650.0,0.47558564]
[1733516320488,0.001,101660.0,101650.0,0.47558564]
[1733516321897,0.14785734,101680.0,101650.0,0.59861515]
[1733516322106,0.14785734,101680.0,101670.0,0.15]
[1733516322548,0.14687474,101680.0,101670.0,0.15]
[1733516323138,0.14687474,101680.0,101660.0,0.15]
[1733516323895,0.14887474,101680.0,101660.0,0.15]
[1733516324500,0.14687474,101680.0,101660.0,0.15]
[1733516324656,0.14687474,101680.0,101660.0,0.152]
[1733516325856,0.01847474,101670.0,101660.0,0.003]
[1733516326443,0.09977474,101670.0,101660.0,0.003]
[1733516326898,0.09977474,101670.0,101650.0,0.19358564]
[1733516327099,0.09977474,101670.0,101660.0,0.001]
[1733516327322,0.09977474,101670.0,101660.0,0.003]
[1733516328946,0.09977474,101670.0,101660.0,0.0047386]
[1733516330397,0.14487474,101680.0,101670.0,0.15]
[1733516330807,0.1264,101680.0,101670.0,4.231015]
[1733516331018,0.049091,101700.0,101670.0,3.36]
[1733516331237,0.16759525,101700.0,101690.0,0.15]
[1733516331799,0.06657474,101700.0,101690.0,0.15]
[1733516332004,0.0481,101700.0,101690.0,0.15]
[1733516332264,0.06657474,101700.0,101690.0,0.15]
[1733516332469,0.001,101680.0,101670.0,0.15]
[1733516332687,0.001,101680.0,101670.0,4.54916977]
[1733516332895,0.001,101680.0,101670.0,4.98601969]
[1733516333108,0.0345778,101710.0,101680.0,0.15]
[1733516333322,0.002,101700.0,101690.0,4.082015]
[1733516333722,0.002,101700.0,101690.0,4.081015]
[1733516334142,0.0345778,101710.0,101690.0,4.081015]
[1733516334472,0.0345778,101710.0,101690.0,4.087015]
[1733516334676,0.0345778,101710.0,101690.0,0.006]
[1733516334889,0.0345778,101710.0,101680.0,0.36155477]
[1733516335252,0.0345778,101710.0,101690.0,4.081015]
[1733516335462,0.0345778,101710.0,101680.0,0.36155477]
[1733516335637,0.0345778,101710.0,101690.0,3.817]
[1733516335881,0.0345778,101710.0,101700.0,0.15]
[1733516336703,0.0355778,101710.0,101700.0,0.15]
[1733516336923,0.0355778,101710.0,101690.0,0.156]
[1733516337128,0.0345778,101710.0,101690.0,0.15]
[1733516337331,0.0345778,101710.0,101700.0,0.002]
[1733516338477,0.0345778,101710.0,101700.0,0.003]
[1733516341178,0.023,101730.0,101700.0,0.03952275]
[1733516341399,0.10002951,101720.0,101700.0,0.03952275]
[1733516342287,0.10002951,101720.0,101700.0,0.03852275]
[1733516342506,0.10002951,101720.0,101700.0,0.03952275]
[1733516342939,0.10002951,101720.0,101700.0,0.03752275]
[1733516343158,0.10002951,101720.0,101700.0,0.03652275]
[1733516343382,0.10002951,101720.0,101700.0,0.03952275]
[1733516343590,0.10002951,101720.0,101700.0,0.03752275]
[1733516344003,0.10002951,101720.0,101700.0,0.03952275]
[1733516344218,0.22672951,101720.0,101700.0,0.03952275]
[1733516345784,0.02422891,101710.0,101700.0,0.003]
[1733516345994,0.20165842,101710.0,101700.0,0.003]
[1733516346206,0.20042951,101710.0,101700.0,0.003]
[1733516346626,0.24842951,101710.0,101690.0,0.0404755]
[1733516346831,0.12302951,101700.0,101690.0,0.0404755]
[1733516347040,0.10002951,101700.0,101680.0,0.18553966]
[1733516347270,0.10002951,101700.0,101680.0,0.18652293]
[1733516348115,0.10002951,101700.0,101680.0,0.18553966]
[1733516348500,0.10002951,101700.0,101680.0,0.18652293]
[1733516348740,0.10002951,101700.0,101680.0,0.18853966]
[1733516349144,0.10002951,101700.0,101690.0,0.33]
[1733516349363,0.1493928,101710.0,101690.0,0.36353966]
[1733516349577,0.0489928,101710.0,101700.0,0.03553966]
[1733516349779,0.048,101710.0,101700.0,0.03553966]
[1733516350839,0.05,101710.0,101700.0,0.03553966]
[1733516351810,0.002,101710.0,101700.0,0.11373966]
[1733516352025,0.003,101710.0,101700.0,0.26373966]
[1733516352402,0.003,101710.0,101700.0,0.18553966]
[1733516352798,0.003,101710.0,101700.0,0.18652275]
[1733516353460,0.003,101710.0,101690.0,0.05939221]
[1733516354247,0.002,101710.0,101690.0,0.05939221]
[1733516354885,0.002,101710.0,101680.0,0.04073133]
[1733516355081,0.0507,101710.0,101690.0,0.001]
[1733516355284,0.0487,101710.0,101690.0,0.001]